[Event "93rd German Championship 2022"]
[Site "Magdeburg"]
[Date "2022.08.18"]
[Round "7.17"]
[White "Pahl, Erik"]
[Black "Arnold, Max"]
[Result "0-1"]
[ECO "C78"]
[WhiteElo "2203"]
[BlackElo "2350"]
[Annotator "TA"]
[PlyCount "76"]
[EventDate "2022.08.14"]
[EventType "swiss"]
[EventCountry "GER"]
[SourceTitle "playchess.com"]
[Source "ChessBase"]
[SourceQuality "1"]
[TimeControl "40/5400+30:1800+30"]

{[%evp 17,76,42,51,20,20,16,18,20,24,20,20,20,20,16,27,23,22,17,26,25,25,25,23,17,24,23,24,32,31,32,24,18,11,27,41,27,27,0,23,23,16,0,0,-275,-254,-195,-236,-763,-693,-890,-891,-841,-818,-776,-668,-1150,-1139,-1020,-892,-769,-452]} 1. e4 {Giri,Anish} e5 {[%emt 0:00:11]} 2. Nf3 {[%emt 0:02:50]} Nc6 {[%emt 0:00:07]} 3. Bb5 {[%emt 0:00:07]} a6 {[%emt 0:00:05]} 4. Ba4 {[%emt 0:00:05]} Nf6 {[%emt 0:00:09]} 5. O-O {[%emt 0:00:07]} b5 {[%emt 0:00:29]} 6. Bb3 {[%emt 0:00:08]} Bc5 {[%emt 0:00:05]} 7. c3 {[%emt 0:00:58]} d6 {[%emt 0:00:17]} 8. a4 {[%emt 0:01:35]} Rb8 {[%emt 0:00:43]} 9. d4 {[%emt 0:00:39][%cal Bd2d4,Bd4d5,Bd5c6][%mdl 32]} Bb6 {[%emt 0:00:15][%cal Bc5b6,Bb6a7,Ba7e3][%mdl 32]} 10. a5 {[%emt 0:03:24] C78: Ruy Lopez: Archangelsk and Möller Defences.} Ba7 {[%emt 0:00:31]} (10... Bxa5 $2 11. dxe5 (11. d5 Ne7 $18) 11... dxe5 12. Qxd8+ Kxd8 13. Bd5 (13. Bxf7 Bb6 $16) 13... Nxd5 14. exd5 $18) 11. h3 {[%emt 0:01:45]} Bb7 {[%emt 0:00:53]} 12. Be3 {[%emt 0:04:51] Black must now prevent d5. The position is equal.} Nxe4 13. d5 {[%emt 0:01:32]} Bxe3 {[%emt 0:02:36]} 14. dxc6 {[%emt 0:00:43]} Nxf2 $1 {[%emt 0:00:29]} 15. Qe2 {[%emt 0:20:41]} Nxh3+ $1 {[%emt 0:01:52]} 16. Kh1 {[%emt 0:01:07]} Nf2+ {[%emt 0:01:36]} 17. Rxf2 {[%emt 0:01:02]} Bxf2 {[%emt 0:00:16]} 18. Qxf2 {[%emt 0:00:10]} Bxc6 {[%emt 0:06:38] [#] And now ...0-0 would win.} 19. Nxe5 $1 {[%emt 0:11:17][%csl Gb3,Ge5][%cal Rf2f7]} Bxg2+ $1 {[%emt 0:01:54]} 20. Kg1 $1 {[%emt 0:00:35][%csl Gb3,Ge5][%cal Rf2f7,Bh1g1,Bg1f2,Bf2g2][%mdl 32]} ({Much worse is} 20. Kxg2 Qg5+ 21. Kf1 (21. Ng4 $2 Qxg4+ 22. Qg3 Qe2+ 23. Qf2 Qe4+ 24. Kg1 Qg6+ 25. Qg2 Kd7 $19) 21... Qxe5 $17) 20... Qf6 {[%emt 0:18:00] Strongly threatening ...Qxf2+.} 21. Nxf7 {[%emt 0:02:42]} Qxf2+ {[%emt 0:06:18]} 22. Kxf2 {[%emt 0:00:06]} Rf8 {[%emt 0:01:51]} 23. Kxg2 {[%emt 0:00:14] Hoping for Ng5.} Rxf7 {[%emt 0:00:08]} 24. Bxf7+ {[%emt 0:00:06]} Kxf7 $14 {[%emt 0:00:10][%mdl 4096] Endgame KRN-KR} 25. Nd2 {[%emt 0:00:18] [#]} Ke6 $146 {[%emt 0:24:47]} ({Predecessor:} 25... Re8 26. Rf1+ Kg6 27. Kf2 h5 28. Rg1+ Kf6 29. Kf3 g6 30. Ne4+ Kg7 31. Nf2 Rf8+ {1-0 (50) Duda,J (2738)-Vidit,S (2726) Krasnaya Polyana 2021 CBM 203 [Giri,Anish]}) 26. Re1+ {[%emt 0:01:52]} Kd7 {[%emt 0:00:36]} 27. Rf1 {[%emt 0:01:04]} Re8 {[%emt 0:02:03]} 28. Rf7+ {[%emt 0:03:05]} Re7 {[%emt 0:02:00]} 29. Rxe7+ {[%emt 0:01:54]} Kxe7 $11 {[%emt 0:00:01] KN-KP} 30. c4 $2 {[%mdl 8192]} (30. Kf3 $11) 30... bxc4 $19 {[%emt 0:02:43]} 31. Nxc4 {[%emt 0:01:13] [#]} Kd7 $1 {[%emt 0:06:31]} 32. b4 $2 {[%emt 0:03:58]} (32. Ne3 Kc6 33. Nf5) 32... Kc6 {[%emt 0:03:51] Black is clearly winning.} 33. Na3 {[%emt 0:00:29]} h5 {[%emt 0:01:47]} 34. Kg3 {[%emt 0:05:23]} g5 {[%emt 0:00:37]} 35. Kf3 {[%emt 0:00:12]} d5 {[%emt 0:07:33]} 36. Nc2 {[%emt 0:01:13]} Kb5 {[%emt 0:00:49]} 37. Kg3 {[%emt 0:00:19]} c5 {[%emt 0:02:29]} 38. bxc5 {[%emt 0:00:52]} Kxc5 {[%emt 0:00:10] Weighted Error Value: White=0.62/Black=0.05 (flawless)} 0-1

[Event "93rd German Championship 2022"]
[Site "Magdeburg"]
[Date "2022.08.18"]
[Round "7.18"]
[White "Stricker, Florian"]
[Black "Colbow, Collin"]
[Result "0-1"]
[ECO "B23"]
[WhiteElo "2182"]
[BlackElo "2325"]
[Annotator "TA"]
[PlyCount "58"]
[EventDate "2022.08.14"]
[EventType "swiss"]
[EventCountry "GER"]
[SourceTitle "playchess.com"]
[Source "ChessBase"]
[SourceQuality "1"]
[TimeControl "40/5400+30:1800+30"]

{[%evp 21,58,0,8,-3,10,3,4,0,26,-48,-45,-48,-58,-50,-71,-70,-62,-93,-17,-131,-163,-159,-60,-396,-403,-645,-570,-954,-941,-1334,-1279,-1375,-1365,-1497,-1422,-1909,-1830,-1735,-821]} 1. e4 {[%emt 0:00:03]} c5 {[%emt 0:02:21]} 2. Nc3 {[%emt 0:00:06]} e6 {[%emt 0:00:09]} 3. Nge2 {[%emt 0:00:06]} Nc6 {[%emt 0:00:10]} 4. g3 {[%emt 0:00:09]} Nf6 {[%emt 0:00:20]} 5. Bg2 {[%emt 0:00:09]} d5 {[%emt 0:00:05]} 6. exd5 {[%emt 0:00:06]} exd5 {[%emt 0:00:04]} 7. d4 {[%emt 0:00:14]} cxd4 {[%emt 0:00:03]} 8. Nxd4 {[%emt 0:00:07]} Bg4 {[%emt 0:00:11]} 9. Qd3 {[%emt 0:07:09]} Bc5 {[%emt 0:05:48]} 10. Nxc6 {[%emt 0:08:39]} bxc6 {[%emt 0:00:30]} 11. O-O {[%emt 0:00:12]} O-O {[%emt 0:01:29]} 12. Na4 {[%emt 0:01:45] B24: Closed Sicilian: 3 g3 sidelines.} Bd6 {[%emt 0:13:09]} 13. Be3 {[%emt 0:09:42]} Re8 {[%emt 0:02:43] [#]} 14. Rfe1 $146 {[%emt 0:04:54] The position is equal.} ({Predecessor:} 14. Qc3 Be5 15. Bd4 Ne4 16. Qd3 Be2 17. Qxe2 Bxd4 18. Bxe4 Rxe4 19. Qa6 Qc8 20. Qa5 {1-0 (52) Stevic,H (2610)-Gdanski,J (2527) Rijeka 2010}) 14... Nd7 {[%emt 0:10:30]} 15. Bd4 {[%emt 0:21:14]} (15. Qc3 $11) 15... Qa5 $15 {[%emt 0:11:27][%csl LRa4,LRe1]} 16. Rxe8+ {[%emt 0:18:51]} Rxe8 {[%emt 0:00:17]} 17. h3 Be2 {[%emt 0:18:49]} 18. Qf5 {[%emt 0:02:34]} Qd8 $36 {[%emt 0:01:13][%mdl 2048] Strongly threatening ...g6. Black fights for an advantage.} 19. c3 {[%emt 0:07:57] [#]} Re4 {[%emt 0:05:19]} 20. Bxg7 {[%emt 0:10:28]} ({Don't blunder} 20. Bxe4 $2 g6 21. Qxd7 Qxd7 $19) (20. h4 $1 $11 {was the only way to keep the balance.} Re7 21. b3) 20... Rxa4 $17 {[%emt 0:03:32] Active counter play!} ({Of course not} 20... Kxg7 $6 21. Bxe4 dxe4 22. Qxe4 $11) 21. Bd4 {[%emt 0:02:25] [#]} c5 {[%emt 0:05:01]} (21... Bc5 $1 $17 {[%cal Rc5d4]} 22. b3 Ra3 23. Bxc5 Nxc5) 22. Bxd5 $4 {[%emt 0:03:18][%mdl 8192] Loses the game.} cxd4 $19 23. Qxf7+ (23. Bc6 $142 Rc4 24. Bxd7) 23... Kh8 {[%emt 0:00:34] Threatens to win with ...d3. Black is clearly winning.} 24. Bb3 {[%emt 0:01:04]} Ne5 {[%emt 0:01:18]} 25. Qd5 {[%emt 0:00:45]} Nf3+ {[%emt 0:03:58]} 26. Kg2 {[%emt 0:00:24]} Ra5 {[%emt 0:00:50]} 27. Qe6 {[%emt 0:00:19]} Re5 {[%emt 0:00:48]} 28. Qf7 {[%emt 0:00:25]} d3 {[%emt 0:01:30] And now ...Ng5 would win.} 29. Bd1 {[%emt 0:00:47]} Qf8 {[%emt 0:01:20] Weighted Error Value: White=1.29/Black=0.13 (very precise)} 0-1

[Event "93rd German Championship 2022"]
[Site "Magdeburg"]
[Date "2022.08.18"]
[Round "7.19"]
[White "Tschernatsch, Johannes"]
[Black "Becker, Stefan"]
[Result "1-0"]
[ECO "B40"]
[WhiteElo "2296"]
[BlackElo "2101"]
[Annotator "NA RC"]
[PlyCount "63"]
[EventDate "2022.08.14"]
[EventType "swiss"]
[EventCountry "GER"]
[SourceTitle "playchess.com"]
[Source "ChessBase"]
[SourceQuality "1"]
[TimeControl "40/5400+30:1800+30"]

1. e4 {[%emt 0:00:02]} c5 {[%emt 0:00:07]} 2. Nf3 {[%emt 0:00:05]} e6 {[%emt 0:00:07]} 3. g3 {[%emt 0:00:04]} Nc6 {[%emt 0:00:13]} 4. Bg2 {[%emt 0:00:06]} Nf6 {[%emt 0:00:23]} 5. Qe2 {[%emt 0:00:06]} e5 {[%emt 0:00:12]} 6. O-O {[%emt 0:00:10]} Be7 {[%emt 0:00:16]} 7. c3 {[%emt 0:00:05]} O-O {[%emt 0:00:21]} 8. Na3 {[%emt 0:00:05]} Re8 {[%emt 0:00:16]} 9. d3 {[%emt 0:00:06]} Bf8 {[%emt 0:00:55]} 10. Bg5 {[%emt 0:01:42]} h6 {[%emt 0:03:05]} 11. Bxf6 {[%emt 0:00:07]} Qxf6 {[%emt 0:00:05]} 12. Nc4 {[%emt 0:00:29]} d6 {[%emt 0:00:48]} 13. Ne3 {[%emt 0:00:12]} Be6 {[%emt 0:00:22]} 14. Nd2 {[%emt 0:02:16]} Qd8 {[%emt 0:08:52]} 15. f4 {[%emt 0:02:20]} exf4 {[%emt 0:01:55]} 16. gxf4 {[%emt 0:01:19]} f6 {[%emt 0:04:38]} 17. Bf3 {[%emt 0:07:43]} Bf7 {[%emt 0:24:05]} 18. Qg2 {[%emt 0:02:46]} Ne7 {[%emt 0:02:35]} 19. Kh1 {[%emt 0:01:30]} Qd7 {[%emt 0:05:42]} 20. Rg1 {[%emt 0:05:07]} Rad8 {[%emt 0:03:02]} 21. c4 {[%emt 0:05:49]} f5 {[%emt 0:03:00]} 22. b3 {[%emt 0:11:26]} Qe6 {[%emt 0:02:55]} 23. Raf1 {[%emt 0:01:56]} b6 {[%emt 0:00:17]} 24. Bd1 {[%emt 0:05:00]} Qf6 {[%emt 0:01:20]} 25. Rf3 {[%emt 0:03:21]} Rd7 {[%emt 0:07:18]} 26. Rg3 {[%emt 0:01:39]} Be6 {[%emt 0:00:21]} 27. Bh5 {[%emt 0:02:39]} Red8 {[%emt 0:07:55]} 28. Nf3 {[%emt 0:04:01]} Qc3 {[%emt 0:05:41]} 29. Nh4 {[%emt 0:04:13]} fxe4 {[%emt 0:04:21]} 30. dxe4 {[%emt 0:00:55]} Qf6 {[%emt 0:02:05]} 31. f5 {[%emt 0:00:24]} Bf7 {[%emt 0:01:58]} 32. Ng4 {[%emt 0:00:29]} 1-0

[Event "93rd German Championship 2022"]
[Site "Magdeburg"]
[Date "2022.08.18"]
[Round "7.20"]
[White "Yi, Danny"]
[Black "Burian, Simon"]
[Result "1/2-1/2"]
[ECO "B32"]
[WhiteElo "2273"]
[BlackElo "2189"]
[Annotator "NA RC"]
[PlyCount "118"]
[EventDate "2022.08.14"]
[EventType "swiss"]
[EventCountry "GER"]
[SourceTitle "playchess.com"]
[Source "ChessBase"]
[SourceQuality "1"]
[TimeControl "40/5400+30:1800+30"]

1. e4 {[%emt 0:00:02]} c5 {[%emt 0:00:09]} 2. Nf3 {[%emt 0:00:06]} Nc6 {[%emt 0:00:05]} 3. d4 {[%emt 0:00:38]} cxd4 {[%emt 0:00:05]} 4. Nxd4 {[%emt 0:00:05]} Qb6 {[%emt 0:00:08]} 5. Nb3 {[%emt 0:04:21]} Nf6 {[%emt 0:00:17]} 6. Bd3 {[%emt 0:01:13]} e6 {[%emt 0:00:24]} 7. O-O {[%emt 0:00:47]} a6 {[%emt 0:00:39]} 8. c4 {[%emt 0:03:52]} Be7 {[%emt 0:02:33]} 9. Nc3 {[%emt 0:01:20]} Qc7 {[%emt 0:01:22]} 10. Be3 {[%emt 0:01:04]} Ne5 {[%emt 0:03:59]} 11. f3 {[%emt 0:04:45]} Nxd3 {[%emt 0:04:24]} 12. Qxd3 {[%emt 0:00:22]} d6 {[%emt 0:03:46]} 13. Rfc1 {[%emt 0:02:04]} O-O {[%emt 0:02:26]} 14. Na4 {[%emt 0:04:23]} Nd7 {[%emt 0:01:16]} 15. c5 {[%emt 0:06:55]} dxc5 {[%emt 0:04:29]} 16. Nbxc5 {[%emt 0:01:47]} Nxc5 {[%emt 0:01:47]} 17. Bxc5 {[%emt 0:04:26]} b5 {[%emt 0:06:42]} 18. Be3 {[%emt 0:05:48]} Qd8 {[%emt 0:09:39]} 19. Qxd8 {[%emt 0:00:51]} Rxd8 {[%emt 0:00:12]} 20. Nb6 {[%emt 0:06:00]} Rb8 {[%emt 0:00:30]} 21. e5 {[%emt 0:01:21]} Bb4 {[%emt 0:03:43]} 22. Rd1 {[%emt 0:30:44]} Rxd1+ {[%emt 0:07:39]} 23. Rxd1 {[%emt 0:00:02]} Bb7 {[%emt 0:00:26]} 24. Nd7 {[%emt 0:04:55]} Rc8 {[%emt 0:00:27]} 25. a3 {[%emt 0:00:12]} Ba5 {[%emt 0:04:29]} 26. Bb6 {[%emt 0:03:59]} Bxb6+ {[%emt 0:00:08]} 27. Nxb6 {[%emt 0:00:02]} Rb8 {[%emt 0:00:20]} 28. b4 {[%emt 0:01:16]} Bc6 {[%emt 0:03:07]} 29. Rd6 {[%emt 0:01:26]} Be8 {[%emt 0:00:12]} 30. Kf2 {[%emt 0:01:59]} g5 {[%emt 0:01:38]} 31. g3 {[%emt 0:02:13]} Kg7 {[%emt 0:00:47]} 32. Ke3 {[%emt 0:00:42]} Rb7 {[%emt 0:00:47]} 33. Kd3 {[%emt 0:02:09]} Rc7 {[%emt 0:02:07]} 34. f4 {[%emt 0:01:52]} gxf4 {[%emt 0:00:50]} 35. gxf4 {[%emt 0:00:01]} Rc1 {[%emt 0:01:14]} 36. Kd2 {[%emt 0:00:18]} Ra1 {[%emt 0:00:50]} 37. Na8 {[%emt 0:00:31]} Ra2+ {[%emt 0:01:20]} 38. Ke1 {[%emt 0:01:31]} f6 {[%emt 0:00:27]} 39. Rxe6 {[%emt 0:01:26]} Bf7 {[%emt 0:00:19]} 40. exf6+ {[%emt 0:02:11]} Kg6 {[%emt 0:00:11]} 41. Rxa6 {[%emt 0:01:48]} Rxh2 {[%emt 0:00:21]} 42. Nc7 {[%emt 0:11:09]} Bc4 {[%emt 0:08:10]} 43. f5+ {[%emt 0:09:02]} Kxf5 {[%emt 0:00:22]} 44. Nxb5 {[%emt 0:01:30]} Kg6 {[%emt 0:03:39]} 45. f7+ {[%emt 0:01:17]} Kg7 {[%emt 0:00:05]} 46. Ra8 {[%emt 0:00:28]} Bxf7 {[%emt 0:00:08]} 47. Nd6 {[%emt 0:00:34]} Bd5 {[%emt 0:00:33]} 48. Ra5 {[%emt 0:00:47]} Bf3 {[%emt 0:02:09]} 49. Rf5 {[%emt 0:00:18]} Ba8 {[%emt 0:00:40]} 50. a4 {[%emt 0:00:27]} Ra2 {[%emt 0:02:28]} 51. a5 {[%emt 0:00:16]} Ra4 {[%emt 0:00:35]} 52. Rf4 {[%emt 0:01:55]} Kg6 {[%emt 0:00:48]} 53. Kd2 {[%emt 0:04:08]} Kg5 {[%emt 0:00:33]} 54. Rd4 {[%emt 0:00:21]} h5 {[%emt 0:00:35]} 55. Kc3 {[%emt 0:00:28]} h4 {[%emt 0:00:22]} 56. Nf7+ {[%emt 0:01:38]} Kh5 {[%emt 0:01:47]} 57. Rd8 {[%emt 0:00:15]} Bg2 {[%emt 0:00:24]} 58. Rh8+ {[%emt 0:00:16]} Kg4 {[%emt 0:00:07]} 59. Rg8+ {[%emt 0:00:59]} Kh3 {[%emt 0:01:28]} 1/2-1/2

[Event "93rd German Championship 2022"]
[Site "Magdeburg"]
[Date "2022.08.18"]
[Round "7.21"]
[White "Feidt, Jonas"]
[Black "Koehler, Christian Friedrich"]
[Result "0-1"]
[ECO "A10"]
[WhiteElo "1901"]
[BlackElo "2285"]
[Annotator "NA RC"]
[PlyCount "78"]
[EventDate "2022.08.14"]
[EventType "swiss"]
[EventCountry "GER"]
[SourceTitle "playchess.com"]
[Source "ChessBase"]
[SourceQuality "1"]
[TimeControl "40/5400+30:1800+30"]

1. c4 {[%emt 0:00:02]} f5 {[%emt 0:00:29]} 2. g3 {[%emt 0:00:10]} Nf6 {[%emt 0:00:06]} 3. Bg2 {[%emt 0:00:07]} g6 {[%emt 0:00:06]} 4. Nc3 {[%emt 0:00:07]} Bg7 {[%emt 0:00:06]} 5. d3 {[%emt 0:00:09]} d6 {[%emt 0:00:08]} 6. e4 {[%emt 0:00:15]} O-O {[%emt 0:00:06]} 7. Nge2 {[%emt 0:00:07]} c6 {[%emt 0:00:08]} 8. O-O {[%emt 0:00:47]} Na6 {[%emt 0:00:08]} 9. h3 {[%emt 0:01:43]} e5 {[%emt 0:00:10]} 10. Be3 {[%emt 0:04:14]} f4 {[%emt 0:01:20]} 11. gxf4 {[%emt 0:03:34]} Nh5 {[%emt 0:00:08]} 12. Qd2 {[%emt 0:12:29]} Be6 {[%emt 0:00:14]} 13. fxe5 {[%emt 0:14:50]} dxe5 {[%emt 0:00:06]} 14. f4 {[%emt 0:09:18]} exf4 {[%emt 0:09:40]} 15. Nxf4 {[%emt 0:01:14]} Nxf4 {[%emt 0:00:07]} 16. Rxf4 {[%emt 0:01:12]} Qd7 {[%emt 0:02:38]} 17. h4 {[%emt 0:14:40]} Rxf4 {[%emt 0:01:54]} 18. Bxf4 {[%emt 0:00:06]} Rd8 {[%emt 0:00:05]} 19. Rd1 {[%emt 0:01:51]} Bd4+ {[%emt 0:18:59]} 20. Kh1 {[%emt 0:03:17]} Bg4 {[%emt 0:20:23]} 21. Ne2 {[%emt 0:02:29]} Bf3 {[%emt 0:00:42]} 22. Nxd4 {[%emt 0:04:25]} Bxd1 {[%emt 0:00:46]} 23. Nxc6 {[%emt 0:02:57]} Qxc6 {[%emt 0:05:40]} 24. Qxd1 {[%emt 0:00:05]} Qxc4 {[%emt 0:00:33]} 25. dxc4 {[%emt 0:00:23]} Rxd1+ {[%emt 0:00:08]} 26. Kh2 {[%emt 0:00:05]} Rd4 {[%emt 0:12:14]} 27. b3 {[%emt 0:00:12]} b6 {[%emt 0:00:16]} 28. Bg5 {[%emt 0:03:36]} Kf7 {[%emt 0:10:23]} 29. e5 {[%emt 0:02:45]} Ke6 {[%emt 0:00:36]} 30. Bf6 {[%emt 0:00:34]} Nb4 {[%emt 0:00:43]} 31. a3 {[%emt 0:06:02]} Nd3 {[%emt 0:01:36]} 32. Bh3+ {[%emt 0:00:05]} Kf7 {[%emt 0:00:07]} 33. Kg3 {[%emt 0:03:06]} Re4 {[%emt 0:02:49]} 34. Kf3 {[%emt 0:04:54]} Re1 {[%emt 0:00:23]} 35. Bh8 {[%emt 0:02:40]} Nxe5+ {[%emt 0:01:26]} 36. Kf2 {[%emt 0:00:16]} Nd3+ {[%emt 0:00:15]} 37. Kf3 {[%emt 0:00:17]} Rb1 {[%emt 0:03:44]} 38. Ke3 {[%emt 0:02:50]} Rxb3 {[%emt 0:00:40]} 39. Kd4 {[%emt 0:00:57]} Nf4 {[%emt 0:04:01]} 0-1

[Event "93rd German Championship 2022"]
[Site "Magdeburg"]
[Date "2022.08.18"]
[Round "7.22"]
[White "Eichstaedt, Mirko"]
[Black "Westphal, Wolfgang"]
[Result "1/2-1/2"]
[ECO "A46"]
[WhiteElo "2223"]
[BlackElo "2175"]
[Annotator "NA RC"]
[PlyCount "81"]
[EventDate "2022.08.14"]
[EventType "swiss"]
[EventCountry "GER"]
[SourceTitle "playchess.com"]
[Source "ChessBase"]
[SourceQuality "1"]
[TimeControl "40/5400+30:1800+30"]

1. d4 Nf6 2. Nf3 d6 3. g3 Nbd7 4. Nc3 c6 5. Bg2 e5 6. e4 Be7 7. O-O O-O 8. a4 a5 9. Re1 Re8 10. b3 Bf8 11. Ba3 Qc7 12. Qd2 Rb8 13. h3 b5 14. dxe5 dxe5 15. Bxf8 Kxf8 16. axb5 cxb5 17. Nd5 Nxd5 18. exd5 b4 19. Ng5 Nf6 20. d6 Qc5 21. Qe3 Qxd6 22. Rxa5 Bf5 23. Ra7 Bg6 24. Be4 Nxe4 25. Nxe4 Qd4 26. Nc5 Kg8 27. Qxd4 exd4 28. Rxe8+ Rxe8 29. Nd3 h5 30. Rb7 Re2 31. Rb8+ Kh7 32. Nf4 Re1+ 33. Kg2 Bxc2 34. Rxb4 d3 35. Rd4 Rb1 36. b4 g6 37. Rd7 Kg7 38. Nxd3 Bxd3 39. Rxd3 Rxb4 40. h4 Rc4 41. Rd6 1/2-1/2

[Event "93rd German Championship 2022"]
[Site "Magdeburg"]
[Date "2022.08.19"]
[Round "8.1"]
[White "Roseneck, Jonas"]
[Black "Parvanyan, Ashot"]
[Result "1/2-1/2"]
[ECO "A28"]
[WhiteElo "2384"]
[BlackElo "2428"]
[Annotator "TA"]
[PlyCount "122"]
[EventDate "2022.08.14"]
[EventType "swiss"]
[EventCountry "GER"]
[SourceTitle "playchess.com"]
[Source "ChessBase"]
[SourceQuality "1"]
[TimeControl "40/5400+30:1800+30"]

{[%evp 13,122,38,38,13,45,10,18,0,0,0,0,-11,-12,-13,-37,-50,-70,-60,-46,-24,-26,-148,-150,-158,-157,-164,-154,-188,-179,-223,-223,-270,-226,-240,-172,-187,-193,-206,-211,-217,-221,-301,-293,-345,-346,-372,-372,-372,-372,-395,-301,-306,-255,-255,-255,-254,-254,-251,-251,-254,-236,-229,-231,-243,-181,-195,-83,-181,-181,-203,-203,-203,-203,-203,-203,-203,-202,-297,-217,-217,-204,-204,-195,-195,-25,-25,-25,-25,-8,-8,-8,-8,-8,-8,-8,-8,-8,-8,0,-153,0,0,0,-160,0,0,0,-7,0,0,0]} 1. c4 {[%emt 0:00:03]} Nf6 {[%emt 0:00:31]} 2. Nc3 {[%emt 0:00:02]} e5 {[%emt 0:04:21]} 3. Nf3 {[%emt 0:00:14]} Nc6 {[%emt 0:00:05]} 4. e3 {[%emt 0:00:04]} g6 {[%emt 0:04:47]} 5. d4 {[%emt 0:00:55]} d6 {[%emt 0:00:14]} 6. Be2 {[%emt 0:05:20]} Bg7 {[%emt 0:05:18]} 7. O-O {[%emt 0:03:05]} O-O {[%emt 0:05:20]} 8. a3 $1 {[%emt 0:01:01][%mdl 4] outshines the older 8.d5. A25: English Opening vs King's Indian with ...Nc6 but without early d3.} a5 {[%emt 0:07:29]} 9. b3 {[%emt 0:19:12]} (9. d5 $5 {[%cal Rd5c6]} Ne7 10. e4 $11) 9... Bf5 {[%emt 0:12:03]} 10. Bb2 {[%emt 0:01:40] [#]} exd4 $146 {[%emt 0:06:50]} ({Predecessor:} 10... Re8 11. d5 Nb8 12. b4 axb4 13. axb4 Rxa1 14. Qxa1 Na6 15. Qa4 Bd7 16. Qb3 h6 {1-0 (31) Cornell,D-Rudin,L USA 1990}) 11. exd4 {[%emt 0:05:45]} d5 {[%emt 0:10:00]} 12. Ne5 {[%emt 0:14:04]} dxc4 {[%emt 0:00:33]} 13. Nxc6 {[%emt 0:01:07]} bxc6 {[%emt 0:00:03][%cal Bb7c6,Bc6c5][%mdl 32]} 14. bxc4 {[%emt 0:04:14]} Rb8 {[%emt 0:16:35]} 15. Ra2 {[%emt 0:04:48]} Ne4 {[%emt 0:06:11]} 16. Nxe4 {[%emt 0:01:03]} Bxe4 {[%emt 0:00:03]} 17. Bf3 {[%emt 0:06:11]} (17. Qd2 $11) 17... Bxf3 $1 $17 {[%emt 0:03:38]} 18. Qxf3 {[%emt 0:00:02]} c5 {[%emt 0:01:50]} ({Weaker is} 18... Bxd4 19. Bxd4 Qxd4 20. Qxc6 $15) 19. a4 {[%emt 0:10:45]} cxd4 {[%emt 0:01:20]} 20. Ba3 {[%emt 0:02:01]} Re8 {[%emt 0:00:13]} 21. Rd2 {[%emt 0:00:19]} Qd7 {[%emt 0:02:40]} 22. Bc5 {[%emt 0:01:14]} Qxa4 {[%emt 0:02:58]} 23. Bxd4 {[%emt 0:00:43]} Qxc4 {[%emt 0:01:22]} 24. Bxg7 {[%emt 0:00:16]} Kxg7 {[%emt 0:00:06]} 25. h3 {[%emt 0:00:45]} Red8 {[%emt 0:04:25]} 26. Rxd8 {[%emt 0:01:38]} Rxd8 $19 {[%emt 0:00:03][%mdl 4096] Endgame KQR-KQR} 27. Qa3 {[%emt 0:00:04]} a4 {[%emt 0:04:08][%cal Ba5a4,Ba4a3][%mdl 32]} 28. Rc1 {[%emt 0:00:03]} Qb3 {[%emt 0:00:16]} 29. Qa1+ {[%emt 0:00:03]} Kg8 {[%emt 0:00:06]} 30. Kh2 {[%emt 0:00:07]} Qb4 {[%emt 0:01:07]} 31. g3 {[%emt 0:00:55]} a3 {[%emt 0:00:53]} 32. Rxc7 {[%emt 0:01:17]} Qb2 {[%emt 0:00:23] Prevents Qf6.} 33. Qxb2 {[%emt 0:00:43]} axb2 {[%emt 0:00:04] KR-KR} 34. Rb7 {[%emt 0:00:02]} Rd2 {[%emt 0:00:05]} 35. Kg2 {[%emt 0:00:15]} Kg7 {[%emt 0:01:02]} 36. Kf3 {[%emt 0:02:13]} Kf6 {[%emt 0:00:05]} 37. Ke3 {[%emt 0:02:50]} Rc2 {[%emt 0:00:03]} 38. f4 {[%emt 0:00:04]} h5 {[%emt 0:01:42]} 39. g4 {[%emt 0:01:03] [#]} h4 {[%emt 0:00:22]} (39... Ke6 $1 $19 {[%cal Re6d5] has better winning chances. Strongly threatening ...Kd5.} 40. Ke4 Kd6) 40. Ke4 {[%emt 0:01:45]} (40. g5+ $17 {might work better.} Ke6 41. Kd3) 40... Ke6 {[%emt 0:00:44]} 41. Rb6+ {[%emt 0:30:54]} Kd7 {[%emt 0:04:02]} 42. Ke5 {[%emt 0:00:00]} Re2+ {[%emt 0:11:18]} 43. Kd5 {[%emt 0:00:00]} Rd2+ {[%emt 0:00:37]} 44. Kc5 {[%emt 0:00:00]} Ke7 {[%emt 0:04:50]} 45. f5 {[%emt 0:00:00]} (45. Kc4 $142) 45... gxf5 {[%emt 0:05:03]} 46. gxf5 {[%emt 0:00:00]} Kf8 {[%emt 0:00:36]} 47. Kc4 {[%emt 0:00:00]} Kg7 {[%emt 0:00:46]} 48. Kc3 {[%emt 0:00:00] [#]} Rf2 {[%emt 0:05:47]} (48... Rh2 $1 $19 {[%cal Rh2h3]} 49. Kd4 Rxh3 50. Rxb2 Kf6) 49. Kd4 $11 {[%emt 0:00:00]} f6 {[%emt 0:01:31]} ({Don't play} 49... Rxf5 $6 50. Ke3 $17) 50. Ke4 {[%emt 0:00:59]} Kf7 {[%emt 0:00:29]} 51. Rb7+ {[%emt 0:00:16]} Ke8 {[%emt 0:00:29] With the idea ...Kd8.} 52. Ke3 {[%emt 0:02:44]} Rc2 {[%emt 0:00:21] Threatening ...Kd8.} 53. Kd3 {[%emt 0:06:44]} Rh2 {[%emt 0:00:04]} 54. Ke4 {[%emt 0:00:11]} Kd8 {[%emt 0:00:33] White should prevent ...Kc8.} 55. Kd5 $1 {[%emt 0:00:03]} Kc8 {[%emt 0:00:45]} 56. Rb4 {[%emt 0:01:00]} ({White must play} 56. Rb3 $1 $11) 56... Kd7 $2 {[%emt 0:00:45]} ({Inferior is} 56... Rxh3 57. Rxb2 Re3 58. Rh2 $11) ({Black should try} 56... Kc7 $17 {And now ...Rf2 would win.} 57. Kd4 Rf2) 57. Rb7+ $1 {[%emt 0:00:04]} Kc8 $2 {[%emt 0:00:04]} (57... Kd8 $11) 58. Rb4 $17 {[%emt 0:00:03]} Rxh3 $2 {[%emt 0:01:00]} (58... Kc7 $17 {...Rf2 is the strong threat.} 59. Kd4 Rg2) 59. Rxb2 $11 {[%emt 0:00:39] The position is equal.} Re3 {[%emt 0:00:21]} 60. Kd4 {[%emt 0:00:58]} Ra3 {[%emt 0:00:15]} 61. Rb6 {[%emt 0:00:26]} Kd7 {[%emt 0:00:16] Whites escaped into a draw.  Weighted Error Value: White=0.24 (precise) /Black=0.25 (precise)} 1/2-1/2